lending/lending_fUSD_20250429
["ID","MTS","AMOUNT","RATE_DAILY","PERIOD"]
[359297250,1745898273916,470.0,0.00038356,30]
[359297251,1745898274328,470.0,0.00038356,30]
[359297252,1745898274748,470.0,0.00038356,30]
[359297253,1745898277206,470.0,0.00038356,30]
[359297254,1745898277633,470.0,0.00038356,30]
[359297255,1745898277893,470.0,0.00038356,30]
[359297256,1745898278776,470.0,0.00038356,30]
[359297257,1745898279567,470.0,0.00038356,30]
[359297258,1745898280044,470.0,0.00038356,30]
[359297259,1745898280953,470.0,0.00038356,30]
[359297260,1745898281673,470.0,0.00038356,30]
[359297261,1745898281759,470.0,0.00038356,30]
[359297262,1745898282216,470.0,0.00038356,30]
[359297263,1745898283877,599.04,0.00038356,30]
[359297264,1745898283958,470.0,0.00038356,30]
[359297265,1745898287223,470.0,0.00038356,30]
[359297266,1745898287794,470.0,0.00038356,30]
[359297267,1745898287893,470.0,0.00038356,30]
[359297268,1745898288477,470.0,0.00038356,30]
[359297269,1745898288782,470.0,0.00038356,30]
[359297270,1745898288932,470.0,0.00038356,30]
[359297271,1745898291933,470.0,0.00038356,30]
[359297272,1745898292150,470.0,0.00038356,30]
[359297273,1745898292560,12363.4,0.00038356,30]
[359297274,1745898293928,470.0,0.00038356,30]
[359297275,1745898294790,470.0,0.00038356,30]
[359297276,1745898296215,470.0,0.00038356,30]
[359297277,1745898296736,470.0,0.00038356,30]
[359297278,1745898298078,470.0,0.00038356,30]
[359297279,1745898298877,169.34660217,0.00038356,30]
[359297280,1745898300958,291.95071806,0.00038356,30]
[359297281,1745898301975,470.0,0.00038356,30]
[359297282,1745898302049,470.0,0.00038356,30]
[359297283,1745898302366,470.0,0.00038356,30]
[359297284,1745898302466,470.0,0.00038356,30]
[359297285,1745898304691,470.0,0.00038356,30]
[359297286,1745898307103,470.0,0.00038356,30]
[359297287,1745898308064,20974.41,0.00038356,30]
[359297288,1745898308979,470.0,0.00038356,30]
[359297289,1745898309305,470.0,0.00038356,30]
[359297290,1745898310332,470.0,0.00038356,30]
[359297291,1745898311124,300.0,0.00038356,30]
[359297292,1745898311387,470.0,0.00038356,30]
[359297293,1745898312293,470.0,0.00038356,30]
[359297294,1745898313443,470.0,0.00038356,30]
[359297295,1745898313794,470.0,0.00038356,30]
[359297296,1745898313998,470.0,0.00038356,30]
[359297297,1745898314615,470.0,0.00038356,30]
[359297298,1745898315097,470.0,0.00038356,30]
[359297299,1745898316185,470.0,0.00038356,30]
[359297300,1745898316453,470.0,0.00038356,30]
[359297301,1745898316681,529.90834127,0.00038356,30]
[359297302,1745898316926,613.88736671,0.00038356,30]
[359297303,1745898317968,470.0,0.00038356,30]
[359297304,1745898320394,470.0,0.00038356,30]
[359297305,1745898321190,470.0,0.00038356,30]
[359297306,1745898321267,470.0,0.00038356,30]
[359297307,1745898321335,470.0,0.00038356,30]
[359297308,1745898321648,262.37921702,0.00038356,30]
[359297309,1745898321801,537.18,0.00038356,30]
[359297310,1745898321998,470.0,0.00038356,30]
[359297311,1745898326119,470.0,0.00038356,30]
[359297312,1745898326835,470.0,0.00038356,30]
[359297313,1745898326959,470.0,0.00038356,30]
[359297314,1745898328979,620.83,0.00038356,30]
[359297315,1745898329119,1611.2,0.00038356,30]
[359297316,1745898329291,1384.84,0.00038356,30]
[359297317,1745898329615,470.0,0.00038356,30]
[359297318,1745898329738,470.0,0.00038356,30]
[359297319,1745898330022,4929.57,0.00038356,30]
[359297320,1745898335131,594.83,0.00038356,30]
[359297321,1745898336244,470.0,0.00038356,30]
[359297322,1745898337167,1705.84,0.00038356,30]
[359297323,1745898339422,470.0,0.00038356,30]
[359297324,1745898340267,470.0,0.00038356,30]
[359297325,1745898340658,470.0,0.00038356,30]
[359297326,1745898340808,470.0,0.00038356,30]
[359297327,1745898341817,556.35436728,0.00038356,30]
[359297328,1745898342968,470.0,0.00038356,30]
[359297329,1745898345484,656.14,0.00038356,30]
[359297330,1745898346625,470.0,0.00038356,30]
[359297331,1745898347391,470.0,0.00038356,30]
[359297332,1745898348134,470.0,0.00038356,30]
[359297333,1745898348493,470.0,0.00038356,30]
[359297334,1745898349358,470.0,0.00038356,30]
[359297335,1745898349423,5538.66,0.00038356,30]
[359297336,1745898349888,470.0,0.00038356,30]
[359297337,1745898350358,698.99,0.00038356,30]
[359297338,1745898350731,470.0,0.00038356,30]
[359297339,1745898351530,470.0,0.00038356,30]
[359297340,1745898352449,470.0,0.00038356,30]
[359297341,1745898352892,470.0,0.00038356,30]
[359297342,1745898353748,476.69,0.00038356,30]
[359297343,1745898356794,5354.3,0.00038356,30]
[359297344,1745898358436,2553.35,0.00038356,30]
[359297345,1745898360655,470.0,0.00038356,30]
[359297346,1745898360864,470.0,0.00038356,30]
[359297347,1745898362796,470.0,0.00038356,30]
[359297348,1745898365284,920.88,0.00038356,30]
[359297349,1745898365997,470.0,0.00038356,30]
[359297350,1745898366102,470.0,0.00038356,30]
[359297351,1745898366240,659.89,0.00038356,30]
[359297352,1745898366302,1620.69,0.00038356,30]
[359297353,1745898368010,470.0,0.00038356,30]
[359297354,1745898368795,470.0,0.00038356,30]
[359297355,1745898371041,470.0,0.00038356,30]
[359297356,1745898371368,470.0,0.00038356,30]
[359297357,1745898372080,470.0,0.00038356,30]
[359297358,1745898373499,470.0,0.00038356,30]
[359297359,1745898373545,470.0,0.00038356,30]
[359297360,1745898374214,833.17,0.00038356,30]
[359297361,1745898375328,470.0,0.00038356,30]
[359297362,1745898375393,470.0,0.00038356,30]
[359297363,1745898376529,470.0,0.00038356,30]
[359297364,1745898377187,474.46,0.00038356,30]
[359297365,1745898377693,470.0,0.00038356,30]
[359297366,1745898378645,470.0,0.00038356,30]
[359297367,1745898378849,470.0,0.00038356,30]
[359297368,1745898378895,470.0,0.00038356,30]
[359297369,1745898379066,470.0,0.00038356,30]
[359297370,1745898379227,470.0,0.00038356,30]
[359297371,1745898379984,470.0,0.00038356,30]
[359297372,1745898380118,470.0,0.00038356,30]
[359297373,1745898380881,470.0,0.00038356,30]
[359297374,1745898383198,483.1,0.00038356,30]
[359297375,1745898383863,3697.33,0.00038356,30]
[359297376,1745898384511,470.0,0.00038356,30]
[359297377,1745898384900,250.0,0.00038356,30]
[359297378,1745898385471,470.0,0.00038356,30]
[359297379,1745898385926,470.0,0.00038356,30]
[359297380,1745898386708,470.0,0.00038356,30]
[359297381,1745898386765,470.0,0.00038356,30]
[359297382,1745898387148,470.0,0.00038356,30]
[359297383,1745898390440,470.0,0.00038356,30]
[359297384,1745898390795,470.0,0.00038356,30]
[359297385,1745898390941,470.0,0.00038356,30]
[359297386,1745898395240,470.0,0.00038356,30]
[359297387,1745898398324,470.0,0.00038356,30]
[359297388,1745898399240,470.0,0.00038356,30]
[359297389,1745898400584,470.0,0.00038356,30]
[359297390,1745898400879,470.0,0.00038356,30]
[359297391,1745898401757,470.0,0.00038356,30]
[359297392,1745898401854,448.28578398,0.00038356,30]
[359297393,1745898403066,470.0,0.00038356,30]
[359297394,1745898403390,470.0,0.00038356,30]
[359297395,1745898405978,470.0,0.00038356,30]
[359297396,1745898407221,470.0,0.00038356,30]
[359297397,1745898407693,470.0,0.00038356,30]
[359297398,1745898408851,1153.31,0.00038356,30]
[359297399,1745898410486,470.0,0.00038356,30]
[359297400,1745898410538,470.0,0.00038356,30]
[359297401,1745898410724,470.0,0.00038356,30]
[359297402,1745898412024,537.03,0.00038356,30]
[359297403,1745898415172,488.01326728,0.00038356,30]
[359297404,1745898415643,470.0,0.00038356,30]
[359297405,1745898415845,394.89546142,0.00038356,30]
[359297406,1745898417591,470.0,0.00038356,30]
[359297407,1745898418285,832.55,0.00038356,30]
[359297408,1745898420068,738.02,0.00038356,30]
[359297409,1745898421129,1260.81,0.00038356,30]
[359297410,1745898422683,470.0,0.00038356,30]
[359297411,1745898425227,470.0,0.00038356,30]
[359297412,1745898426409,470.0,0.00038356,30]
[359297413,1745898426840,470.0,0.00038356,30]
[359297414,1745898430630,470.0,0.00038356,30]
[359297415,1745898432302,521.50536305,0.00038356,30]
[359297416,1745898434806,175.74550036,0.00038356,30]
[359297417,1745898435639,470.0,0.00038356,30]
[359297418,1745898435722,470.0,0.00038356,30]
[359297419,1745898437806,470.0,0.00038356,30]
[359297420,1745898438519,707.03,0.00038356,30]
[359297421,1745898439615,470.0,0.00038356,30]
[359297422,1745898440240,470.0,0.00038356,30]
[359297423,1745898441036,470.0,0.00038356,30]
[359297424,1745898441172,314.87648542,0.00038356,30]
[359297425,1745898442461,470.0,0.00038356,30]
[359297426,1745898442873,470.0,0.00038356,30]
[359297427,1745898446949,470.0,0.00038356,30]
[359297428,1745898446991,470.0,0.00038356,30]
[359297429,1745898447206,470.0,0.00038356,30]
[359297430,1745898447623,470.0,0.00038356,30]
[359297431,1745898447669,470.0,0.00038356,30]
[359297432,1745898449706,523.52,0.00038356,30]
[359297433,1745898451784,470.0,0.00038356,30]
[359297434,1745898452510,470.0,0.00038356,30]
[359297435,1745898452815,470.0,0.00038356,30]
[359297436,1745898453124,500.0,0.00038356,30]
[359297437,1745898453204,470.0,0.00038356,30]
[359297438,1745898453279,470.0,0.00038356,30]
[359297439,1745898453486,470.0,0.00038356,30]
[359297440,1745898455540,470.0,0.00038356,30]
[359297441,1745898455750,502.12511105,0.00038356,30]
[359297442,1745898457990,470.0,0.00038356,30]
[359297443,1745898464358,470.0,0.00038356,30]
[359297444,1745898464420,470.0,0.00038356,30]
[359297445,1745898464921,470.0,0.00038356,30]
[359297446,1745898465741,470.0,0.00038356,30]
[359297447,1745898466457,470.0,0.00038356,30]
[359297448,1745898467255,470.0,0.00038356,30]
[359297449,1745898471799,470.0,0.00038356,30]
[359297450,1745898476844,470.0,0.00038356,30]
[359297451,1745898477179,470.0,0.00038356,30]
[359297452,1745898478252,470.0,0.00038356,30]
[359297453,1745898479706,11563.92,0.00038356,30]
[359297454,1745898480986,20100.48,0.00038356,30]
[359297455,1745898481318,470.0,0.00038356,30]
[359297456,1745898481747,470.0,0.00038356,30]
[359297457,1745898482704,470.0,0.00038356,30]
[359297458,1745898485113,470.0,0.00038356,30]
[359297459,1745898487511,470.0,0.00038356,30]
[359297460,1745898487795,470.0,0.00038356,30]
[359297461,1745898487951,470.0,0.00038356,30]
[359297462,1745898488782,470.0,0.00038356,30]
[359297463,1745898490200,470.0,0.00038356,30]
[359297464,1745898490409,470.0,0.00038356,30]
[359297465,1745898493998,470.0,0.00038356,30]
[359297466,1745898495735,317.71843139,0.00038356,30]
[359297467,1745898499225,470.0,0.00038356,30]
[359297468,1745898499365,252.82177727,0.00038356,30]
[359297469,1745898499672,2229.68,0.00038356,30]
[359297470,1745898499795,470.0,0.00038356,30]
[359297471,1745898500069,470.0,0.00038356,30]
[359297472,1745898500882,470.0,0.00038356,30]
[359297473,1745898501806,470.0,0.00038356,30]
[359297474,1745898502043,470.0,0.00038356,30]
[359297475,1745898502791,470.0,0.00038356,30]
[359297476,1745898503549,470.0,0.00038356,30]
[359297477,1745898504064,470.0,0.00038356,30]
[359297478,1745898506689,470.0,0.00038356,30]
[359297479,1745898507326,470.0,0.00038356,30]
[359297480,1745898508287,1634.77,0.00038356,30]
[359297481,1745898509322,470.0,0.00038356,30]
[359297482,1745898511093,470.0,0.00038356,30]
[359297483,1745898511424,470.0,0.00038356,30]
[359297484,1745898513528,470.0,0.00038356,30]
[359297485,1745898513783,470.0,0.00038356,30]
[359297486,1745898514204,470.0,0.00038356,30]
[359297487,1745898515999,470.0,0.00038356,30]
[359297488,1745898516254,470.0,0.00038356,30]
[359297489,1745898516665,628.8,0.00038356,30]
[359297490,1745898517047,470.0,0.00038356,30]
[359297491,1745898518022,470.0,0.00038356,30]
[359297492,1745898519237,470.0,0.00038356,30]
[359297493,1745898520372,11848.26,0.00038356,30]
[359297494,1745898520624,996.94,0.00038356,30]
[359297495,1745898521638,470.0,0.00038356,30]
[359297496,1745898522846,470.0,0.00038356,30]
[359297497,1745898522917,845.98,0.00038356,30]
[359297498,1745898524527,470.0,0.00038356,30]
[359297499,1745898525612,470.0,0.00038356,30]
[359297500,1745898526020,5131.2,0.00038356,30]
[359297501,1745898527445,470.0,0.00038356,30]
[359297502,1745898527496,470.0,0.00038356,30]
[359297503,1745898529850,470.0,0.00038356,30]
[359297504,1745898529898,470.0,0.00038356,30]
[359297505,1745898530683,470.0,0.00038356,30]
[359297506,1745898532307,470.0,0.00038356,30]
[359297507,1745898533924,470.0,0.00038356,30]
[359297508,1745898534252,470.0,0.00038356,30]
[359297509,1745898534829,470.0,0.00038356,30]
[359297510,1745898537415,470.0,0.00038356,30]
[359297511,1745898537796,470.0,0.00038356,30]
[359297512,1745898538243,486.56,0.00038356,30]
[359297513,1745898539273,470.0,0.00038356,30]
[359297514,1745898541648,470.0,0.00038356,30]
[359297515,1745898541692,470.0,0.00038356,30]
[359297516,1745898541820,470.0,0.00038356,30]
[359297517,1745898542290,470.0,0.00038356,30]
[359297518,1745898543098,570.05,0.00038356,30]
[359297519,1745898544465,470.0,0.00038356,30]
[359297520,1745898544963,470.0,0.00038356,30]
[359297521,1745898546519,470.0,0.00038356,30]
[359297522,1745898549828,470.0,0.00038356,30]
[359297523,1745898551268,551.49,0.00038356,30]
[359297524,1745898551659,470.0,0.00038356,30]
[359297525,1745898553168,1327.14,0.00038356,30]
[359297526,1745898553485,470.0,0.00038356,30]
[359297527,1745898554773,5307.88,0.00038356,30]
[359297528,1745898555082,477.21,0.00038356,30]
[359297529,1745898555660,470.0,0.00038356,30]
[359297530,1745898556999,470.0,0.00038356,30]
[359297531,1745898557205,470.0,0.00038356,30]
[359297532,1745898558310,470.0,0.00038356,30]
[359297533,1745898559297,470.0,0.00038356,30]
[359297534,1745898559587,470.0,0.00038356,30]
[359297535,1745898559743,680.36,0.00038356,30]
[359297536,1745898560613,470.0,0.00038356,30]
[359297537,1745898564542,470.0,0.00038356,30]
[359297538,1745898564592,470.0,0.00038356,30]
[359297539,1745898566192,514.79,0.00038356,30]
[359297540,1745898567822,485.33,0.00038356,30]
[359297541,1745898568611,470.0,0.00038356,30]
[359297542,1745898570887,470.0,0.00038356,30]
[359297543,1745898572889,470.0,0.00038356,30]
[359297544,1745898574320,4724.17,0.00038356,30]
[359297545,1745898574811,470.0,0.00038356,30]
[359297546,1745898574889,470.0,0.00038356,30]
[359297547,1745898579019,470.0,0.00038356,30]
[359297548,1745898579065,470.0,0.00038356,30]
[359297549,1745898580808,470.0,0.00038356,30]
[359297550,1745898582122,470.0,0.00038356,30]
[359297551,1745898583083,470.0,0.00038356,30]
[359297552,1745898583666,470.0,0.00038356,30]
[359297553,1745898584374,470.0,0.00038356,30]
[359297554,1745898584730,470.0,0.00038356,30]
[359297555,1745898587844,3543.28,0.00038356,30]
[359297558,1745898588945,897.31,0.00038356,30]
[359297559,1745898589898,470.0,0.00038356,30]
[359297560,1745898594510,470.0,0.00038356,30]
[359297561,1745898596948,507.62,0.00038356,30]
[359297562,1745898597475,470.0,0.00038356,30]
[359297563,1745898599200,470.0,0.00038356,30]
[359297564,1745898600407,470.0,0.00038356,30]
[359297565,1745898600569,470.0,0.00038356,30]
[359297566,1745898600946,470.0,0.00038356,30]
[359297567,1745898602253,470.0,0.00038356,30]
[359297568,1745898603330,470.0,0.00038356,30]
[359297569,1745898603383,470.0,0.00038356,30]
[359297570,1745898604044,470.0,0.00038356,30]
[359297571,1745898606636,470.0,0.00038356,30]
[359297572,1745898607034,470.0,0.00038356,30]
[359297573,1745898607733,470.0,0.00038356,30]
[359297574,1745898609704,470.0,0.00038356,30]
[359297575,1745898610796,470.0,0.00038356,30]
[359297576,1745898610854,470.0,0.00038356,30]
[359297577,1745898610903,470.0,0.00038356,30]
[359297578,1745898611023,470.0,0.00038356,30]
[359297579,1745898616659,547.02228669,0.00038356,30]
[359297580,1745898616715,470.0,0.00038356,30]
[359297581,1745898617280,514.65,0.00038356,30]
[359297582,1745898617384,470.0,0.00038356,30]
[359297583,1745898617429,470.0,0.00038356,30]
[359297584,1745898618165,470.0,0.00038356,30]
[359297585,1745898619020,470.0,0.00038356,30]
[359297586,1745898620777,470.0,0.00038356,30]
[359297587,1745898621289,470.0,0.00038356,30]
[359297588,1745898622078,1112.55,0.00038356,30]
[359297589,1745898622410,513.68,0.00038356,30]
[359297590,1745898623157,470.0,0.00038356,30]
[359297591,1745898625190,470.0,0.00038356,30]
[359297592,1745898625639,798.46,0.00038356,30]
[359297593,1745898626361,470.0,0.00038356,30]
[359297594,1745898627945,470.0,0.00038356,30]
[359297595,1745898628262,470.0,0.00038356,30]
[359297596,1745898628467,1738.37,0.00038356,30]
[359297597,1745898628667,470.0,0.00038356,30]
[359297598,1745898630171,470.0,0.00038356,30]
[359297599,1745898630617,470.0,0.00038356,30]
[359297602,1745898631598,-207.4,0.00024784,2]
[359297603,1745898631613,-215.0738,0.00026153,2]
[359297604,1745898631623,-549.36520383,0.00027397,2]
[359297705,1745898636045,470.0,0.00038356,30]
[359297706,1745898636248,169.108523,0.00037589,30]
[359297707,1745898636304,470.0,0.00038356,30]
[359297708,1745898636363,470.0,0.00038356,30]
[359297712,1745898638226,470.0,0.00038356,30]
[359297713,1745898638298,1553.16,0.00038356,30]
[359297720,1745898639896,-25.07479617,0.00027397,2]
[359297721,1745898639906,-223.0315306,0.00027522,2]
[359297722,1745898639917,-1664.91218913,0.00027751,2]
[359297723,1745898639926,-231.28369723,0.00028891,2]
[359297724,1745898639936,-239.84119403,0.0003026,2]
[359297725,1745898639946,-750.55,0.00030957,2]
[359297726,1745898639957,-177.76,0.00031071,2]
[359297727,1745898639966,-1158.81870183,0.00031339,2]
[359297728,1745898639977,-248.71531821,0.00031629,2]
[359297729,1745898639986,-220.0,0.00032027,2]
[359297730,1745898639996,-413.50330128,0.00032387,2]
[359297731,1745898640005,-200.0,0.00032768,2]
[359297732,1745898640014,-446.50927152,0.00032811,2]
[359297733,1745898640025,-581.34790231,0.00032811,2]
[359297734,1745898640037,-129.06282617,0.00032811,2]
[359297735,1745898640046,-210.1,0.00032973,2]
[359297736,1745898640056,-257.91778498,0.00032998,2]
[359297737,1745898640065,-10.27938885,0.00033055,2]
[359297738,1745898641847,-78.5684178,0.00033055,2]
[359297739,1745898641909,470.0,0.00038356,30]
[359297746,1745898642776,470.0,0.00038356,30]
[359297747,1745898642789,-9300.00000011,0.00033055,2]
[359297753,1745898644317,470.0,0.00038356,30]
[359297754,1745898644362,154.31929419,0.00038356,30]
[359297769,1745898645393,-4887.78838904,0.00033055,2]
[359297770,1745898645403,-250.0,0.00033089,2]
[359297771,1745898645412,-574.44,0.00033165,2]
[359297772,1745898645422,-500.0,0.00033184,2]
[359297773,1745898645431,-255.2411814,0.00033212,4]
[359297774,1745898645440,-106.40667254,0.00033221,2]
[359297775,1745898645452,-644.14332746,0.00033221,2]
[359297776,1745898645462,-172.06,0.00033351,2]
[359297777,1745898645471,-1000.0,0.00033398,2]
[359297778,1745898645481,-1695.67858538,0.00033548,2]
[359297779,1745898645491,-150.0,0.00033641,2]
[359297780,1745898645504,-248.26,0.00033661,2]
[359297781,1745898645515,-152.0,0.00033767,3]
[359297782,1745898645525,-150.0,0.00033812,2]
[359297783,1745898645534,-1651.494681,0.000339,11]
[359297784,1745898645545,-250.0,0.00033931,2]
[359297785,1745898645557,-159.65317865,0.000343,2]
[359297786,1745898645567,-1651.49468086,0.00034314,11]
[359297787,1745898645577,-267.46074303,0.00034367,2]
[359297788,1745898645589,-150.0,0.00034371,2]
[359297789,1745898645599,-1000.0,0.000344,2]
[359297790,1745898645609,-3029.91019417,0.000344,2]
[359297791,1745898645619,-2500.0,0.000344,2]
[359297792,1745898645628,-936.454,0.00034469,2]
[359297793,1745898645638,-1351.553,0.00034469,2]
[359297794,1745898645647,-622.343,0.00034469,2]
[359297795,1745898645656,-1722.38586413,0.00034469,2]
[359297796,1745898645747,-180.17713587,0.00034469,2]
[359297797,1745898645756,-153.0,0.00034469,2]
[359297798,1745898645766,-1153.178,0.00034469,2]
[359297799,1745898645775,-500.0,0.00034497,7]
[359297800,1745898645785,-176.0,0.00034498,2]
[359297801,1745898645794,-150.0,0.00034498,2]
[359297802,1745898645804,-150.0,0.00034498,2]
[359297803,1745898645814,-150.0,0.00034498,2]
[359297805,1745898645823,-152.14,0.00034498,2]
[359297807,1745898645833,-1209.37701432,0.00034499,7]
[359297809,1745898645842,-500.0,0.00034499,7]
[359297811,1745898645851,-637.41441247,0.00034499,7]
[359297813,1745898645862,-1209.37701432,0.00034499,7]
[359297815,1745898645871,-405.79699503,0.00034499,7]
[359297817,1745898645880,-1209.37701432,0.00034499,7]
[359297818,1745898645890,-157.74876386,0.00034499,7]
[359297820,1745898645960,-1051.62825046,0.00034499,7]
[359297821,1745898645969,-1209.37701432,0.00034499,7]
[359297822,1745898645979,-1179.08189351,0.00034499,7]
[359297824,1745898646031,470.0,0.00038356,30]
[359297825,1745898646313,470.0,0.00038356,30]
[359297826,1745898646540,470.0,0.00038356,30]
[359297827,1745898647941,470.0,0.00038356,30]
[359297828,1745898648076,470.0,0.00038356,30]
[359297829,1745898650698,533.25,0.00038356,30]
[359297830,1745898650842,470.0,0.00038356,30]
[359297831,1745898654760,728.54,0.00038356,30]
[359297832,1745898654971,470.0,0.00038356,30]
[359297833,1745898655225,470.0,0.00038356,30]
[359297834,1745898655318,470.0,0.00038356,30]
[359297835,1745898656867,470.0,0.00038356,30]
[359297836,1745898657058,470.0,0.00038356,30]
[359297837,1745898657161,470.0,0.00038356,30]
[359297838,1745898658771,519.2141074,0.00038356,30]
[359297839,1745898659012,470.0,0.00038356,30]
[359297840,1745898662788,470.0,0.00038356,30]
[359297841,1745898666554,470.0,0.00038356,30]
[359297842,1745898667543,470.0,0.00038356,30]
[359297843,1745898667786,470.0,0.00038356,30]
[359297844,1745898669169,470.0,0.00038356,30]
[359297845,1745898669329,470.0,0.00038356,30]
[359297846,1745898671034,470.0,0.00038356,30]
[359297847,1745898672353,797.87,0.00038356,30]
[359297848,1745898673983,470.0,0.00038356,30]
[359297849,1745898674218,470.0,0.00038356,30]
[359297850,1745898674904,470.0,0.00038356,30]
[359297851,1745898675083,470.0,0.00038356,30]
[359297852,1745898675316,470.0,0.00038356,30]
[359297853,1745898676076,470.0,0.00038356,30]
[359297854,1745898678487,470.0,0.00038356,30]
[359297855,1745898678840,470.0,0.00038356,30]
[359297857,1745898679451,580.63,0.00038356,30]
[359297858,1745898679711,470.0,0.00038356,30]
[359297859,1745898680132,470.0,0.00038356,30]
[359297860,1745898681634,11082.09,0.00038356,30]
[359297861,1745898681793,470.0,0.00038356,30]
[359297862,1745898685908,1208.28,0.00038356,30]
[359297863,1745898687842,470.0,0.00038356,30]
[359297864,1745898688314,470.0,0.00038356,30]
[359297865,1745898688534,470.0,0.00038356,30]
[359297866,1745898691236,470.0,0.00038356,30]
[359297867,1745898691387,170.17839,0.00038356,63]
[359297868,1745898692282,175.34364154,0.00038356,30]
[359297869,1745898692385,470.0,0.00038356,30]
[359297870,1745898693550,470.0,0.00038356,30]
[359297871,1745898693903,470.0,0.00038356,30]
[359297872,1745898694456,470.0,0.00038356,30]
[359297873,1745898694646,470.0,0.00038356,30]
[359297874,1745898697690,266.66518956,0.00038356,30]
[359297875,1745898701243,470.0,0.00038356,30]
[359297876,1745898701288,470.0,0.00038356,30]
[359297877,1745898702066,470.0,0.00038356,30]
[359297878,1745898702490,470.0,0.00038356,30]
[359297879,1745898708574,470.0,0.00038356,30]
[359297880,1745898709828,470.0,0.00038356,30]
[359297881,1745898713248,470.0,0.00038356,30]
[359297882,1745898716788,470.0,0.00038356,30]
[359297883,1745898716845,403.22141459,0.00038356,30]
[359297884,1745898719750,470.0,0.00038356,30]
[359297885,1745898720598,470.0,0.00038356,30]
[359297886,1745898722182,200.0,0.00036533,117]
[359297887,1745898722251,200.0,0.00033806,117]
[359297888,1745898722465,470.0,0.00038356,30]
[359297889,1745898723434,470.0,0.00038356,30]
[359297890,1745898723662,470.0,0.00038356,30]
[359297891,1745898724847,470.0,0.00038356,30]
[359297892,1745898725781,470.0,0.00038356,30]
[359297893,1745898725846,470.0,0.00038356,30]
[359297894,1745898727554,11354.58,0.00038356,30]
[359297895,1745898728498,470.0,0.00038356,30]
[359297896,1745898731448,470.0,0.00038356,30]
[359297897,1745898732707,470.0,0.00038356,30]